[Event "Titled Tuesday Blitz November 01 Early 2022"]
[White "Grandelius, Nils"]
[Black "Vachylia, Andrii"]
[WhiteFideId "1710400"]
[BlackFideId "14137224"]
[WhiteElo "2617"]
[BlackElo "2318"]
[Result "0-1"]
[Round "04"]
[TimeControl "180+1"]
[Date "2022.11.01"]
[WhiteClock "0:00:08"]
[BlackClock "0:00:12"]

1. Nf3 {[%clk 0:03:00]}  Nf6 {[%clk 0:02:58]} 2. g3 {[%clk 0:02:59]}  e6 {[%clk 0:02:53]} 3. Bg2 {[%clk 0:03:00]}  d5 {[%clk 0:02:54]} 4. O-O {[%clk 0:03:00]}  Be7 {[%clk 0:02:55]} 5. b3 {[%clk 0:02:58]}  O-O {[%clk 0:02:56]} 6. Bb2 {[%clk 0:02:58]}  c5 {[%clk 0:02:57]} 7. c4 {[%clk 0:02:54]}  Nc6 {[%clk 0:02:57]} 8. cxd5 {[%clk 0:02:54]}  exd5 {[%clk 0:02:57]} 9. d4 {[%clk 0:02:54]}  Re8 {[%clk 0:02:45]} 10. Nc3 {[%clk 0:02:53]}  Be6 {[%clk 0:02:41]} 11. Rc1 {[%clk 0:02:51]}  b6 {[%clk 0:02:28]} 12. dxc5 {[%clk 0:02:46]}  bxc5 {[%clk 0:02:25]} 13. Na4 {[%clk 0:02:17]}  Nd7 {[%clk 0:02:24]} 14. Ba3 {[%clk 0:02:05]}  Qa5 {[%clk 0:02:13]} 15. Qe1 {[%clk 0:02:02]}  Qb5 {[%clk 0:02:10]} 16. Qd2 {[%clk 0:01:56]}  Rac8 {[%clk 0:02:07]} 17. Rfd1 {[%clk 0:01:49]}  h6 {[%clk 0:01:56]} 18. e3 {[%clk 0:01:38]}  Nce5 {[%clk 0:01:38]} 19. Nxe5 {[%clk 0:01:36]}  Nxe5 {[%clk 0:01:39]} 20. Bb2 {[%clk 0:01:34]}  Ng4 {[%clk 0:01:23]} 21. Nc3 {[%clk 0:01:31]}  Qa5 {[%clk 0:01:14]} 22. Nxd5 {[%clk 0:01:28]}  Qxa2 {[%clk 0:01:13]} 23. Qc3 {[%clk 0:01:16]}  Bf6 {[%clk 0:01:12]} 24. Nxf6+ {[%clk 0:01:08]}  Nxf6 {[%clk 0:01:13]} 25. h3 {[%clk 0:00:21]}  Qxb3 {[%clk 0:01:08]} 26. Qxb3 {[%clk 0:00:17]}  Bxb3 {[%clk 0:01:09]} 27. Rd6 {[%clk 0:00:17]}  Re6 {[%clk 0:01:07]} 28. Rd3 {[%clk 0:00:15]}  Rb6 {[%clk 0:01:04]} 29. Rdc3 {[%clk 0:00:10]}  Be6 {[%clk 0:00:58]} 30. Ba1 {[%clk 0:00:10]}  c4 {[%clk 0:00:58]} 31. Ra3 {[%clk 0:00:08]}  a6 {[%clk 0:00:55]} 32. Bd4 {[%clk 0:00:08]}  Rd6 {[%clk 0:00:52]} 33. Bb7 {[%clk 0:00:08]}  Rcd8 {[%clk 0:00:38]} 34. g4 {[%clk 0:00:07]}  h5 {[%clk 0:00:31]} 35. f3 {[%clk 0:00:05]}  hxg4 {[%clk 0:00:26]} 36. hxg4 {[%clk 0:00:06]}  Nh7 {[%clk 0:00:25]} 37. Rxa6 {[%clk 0:00:03]}  Rxa6 {[%clk 0:00:23]} 38. Bxa6 {[%clk 0:00:03]}  Ng5 {[%clk 0:00:24]} 39. Kf2 {[%clk 0:00:04]}  Bd5 {[%clk 0:00:24]} 40. f4 {[%clk 0:00:04]}  Ne4+ {[%clk 0:00:24]} 41. Ke2 {[%clk 0:00:03]}  Ng3+ {[%clk 0:00:18]} 42. Kf2 {[%clk 0:00:04]}  Ne4+ {[%clk 0:00:18]} 43. Ke1 {[%clk 0:00:04]}  Ra8 {[%clk 0:00:16]} 44. Bxc4 {[%clk 0:00:04]}  Rc8 {[%clk 0:00:17]} 45. Bxd5 {[%clk 0:00:04]}  Rxc1+ {[%clk 0:00:18]} 46. Ke2 {[%clk 0:00:05]}  Nf6 {[%clk 0:00:17]} 47. Bf3 {[%clk 0:00:05]}  Rc2+ {[%clk 0:00:17]} 48. Kf1 {[%clk 0:00:06]}  Kf8 {[%clk 0:00:16]} 49. g5 {[%clk 0:00:06]}  Ne8 {[%clk 0:00:16]} 50. Be2 {[%clk 0:00:06]}  Ke7 {[%clk 0:00:15]} 51. Kf2 {[%clk 0:00:07]}  g6 {[%clk 0:00:16]} 52. Kf3 {[%clk 0:00:07]}  Nd6 {[%clk 0:00:16]} 53. Bd3 {[%clk 0:00:08]}  Ra2 {[%clk 0:00:15]} 54. Bc5 {[%clk 0:00:08]}  Kd7 {[%clk 0:00:15]} 55. Bf1 {[%clk 0:00:07]}  Rc2 {[%clk 0:00:14]} 56. Bh3+ {[%clk 0:00:07]}  Kc6 {[%clk 0:00:14]} 57. Bd4 {[%clk 0:00:07]}  Nb5 {[%clk 0:00:14]} 58. Be5 {[%clk 0:00:07]}  Nd6 {[%clk 0:00:14]} 59. Bg2 {[%clk 0:00:07]}  Kd7 {[%clk 0:00:14]} 60. Bh3+ {[%clk 0:00:07]}  Ke7 {[%clk 0:00:15]} 61. Bf1 {[%clk 0:00:07]}  Nf5 {[%clk 0:00:14]} 62. Bd3 {[%clk 0:00:07]}  Ra2 {[%clk 0:00:13]} 63. Bc4 {[%clk 0:00:07]}  Ra3 {[%clk 0:00:12]} 64. Kf2 {[%clk 0:00:02]}  Nxe3 {[%clk 0:00:11]} 65. Be2 {[%clk 0:00:03]}  Nf5 {[%clk 0:00:11]} 66. Bf3 {[%clk 0:00:02]}  Nd6 {[%clk 0:00:09]} 67. Bd5 {[%clk 0:00:02]}  Nf5 {[%clk 0:00:08]} 68. Bf3 {[%clk 0:00:02]}  Ke6 {[%clk 0:00:07]} 69. Bg4 {[%clk 0:00:02]}  Kd5 {[%clk 0:00:07]} 70. Bf3+ {[%clk 0:00:03]}  Kc4 {[%clk 0:00:08]} 71. Be2+ {[%clk 0:00:03]}  Kc5 {[%clk 0:00:06]} 72. Bf3 {[%clk 0:00:03]}  Ra2+ {[%clk 0:00:06]} 73. Be2 {[%clk 0:00:03]}  Kd5 {[%clk 0:00:06]} 74. Kf3 {[%clk 0:00:03]}  Ra3+ {[%clk 0:00:07]} 75. Kf2 {[%clk 0:00:03]}  Ke4 {[%clk 0:00:08]} 76. Bb5 {[%clk 0:00:02]}  Ra2+ {[%clk 0:00:08]} 77. Kf1 {[%clk 0:00:02]}  Kf3 {[%clk 0:00:05]} 78. Bc6+ {[%clk 0:00:02]}  Ke3 {[%clk 0:00:06]} 79. Bd5 {[%clk 0:00:02]}  Ra7 {[%clk 0:00:05]} 80. Kg2 {[%clk 0:00:02]}  Kd3 {[%clk 0:00:05]} 81. Kh3 {[%clk 0:00:02]}  Ne3 {[%clk 0:00:05]} 82. Bf3 {[%clk 0:00:02]}  Kc4 {[%clk 0:00:04]} 83. Kg3 {[%clk 0:00:03]}  Nf5+ {[%clk 0:00:05]} 84. Kf2 {[%clk 0:00:03]}  Re7 {[%clk 0:00:05]} 85. Be2+ {[%clk 0:00:03]}  Kc5 {[%clk 0:00:04]} 86. Bf3 {[%clk 0:00:04]}  Rxe5 {[%clk 0:00:04]} 87. fxe5 {[%clk 0:00:04]}  Kd4 {[%clk 0:00:05]} 88. e6 {[%clk 0:00:04]}  fxe6 {[%clk 0:00:06]} 89. Bg4 {[%clk 0:00:04]}  Ke4 {[%clk 0:00:05]} 90. Bd1 {[%clk 0:00:04]}  Kf4 {[%clk 0:00:06]} 91. Bb3 {[%clk 0:00:04]}  e5 {[%clk 0:00:06]} 92. Bf7 {[%clk 0:00:04]}  Kxg5 {[%clk 0:00:07]} 93. Kf3 {[%clk 0:00:05]}  Kf6 {[%clk 0:00:08]} 94. Bd5 {[%clk 0:00:05]}  Nd6 {[%clk 0:00:07]} 95. Bb3 {[%clk 0:00:05]}  Kf5 {[%clk 0:00:07]} 96. Bc2+ {[%clk 0:00:05]}  e4+ {[%clk 0:00:08]} 97. Ke3 {[%clk 0:00:06]}  Ke5 {[%clk 0:00:08]} 98. Bd1 {[%clk 0:00:06]}  Nf5+ {[%clk 0:00:09]} 99. Kf2 {[%clk 0:00:06]}  Kf4 {[%clk 0:00:10]} 100. Bc2 {[%clk 0:00:07]}  g5 {[%clk 0:00:11]} 101. Bb1 {[%clk 0:00:06]}  g4 {[%clk 0:00:11]} 102. Bxe4 {[%clk 0:00:07]}  Kxe4 {[%clk 0:00:11]} 103. Kg2 {[%clk 0:00:08]}  Kf4 {[%clk 0:00:12]} 0-1


[Site "https://www.chess.com"]

[Event "Titled Tuesday Blitz November 01 Early 2022"]
[White "Gu, Xiaobing"]
[Black "Sharapov, Evgeny"]
[WhiteFideId "8602611"]
[BlackFideId "14103133"]
[WhiteElo "2174"]
[BlackElo "2367"]
[Result "0-1"]
[Round "04"]
[TimeControl "180+1"]
[Date "2022.11.02"]
[WhiteClock "0:00:12"]
[BlackClock "0:01:49"]

1. e4 {[%clk 0:03:00]}  c5 {[%clk 0:02:59]} 2. Nf3 {[%clk 0:02:59]}  d6 {[%clk 0:02:59]} 3. Bb5+ {[%clk 0:02:57]}  Nd7 {[%clk 0:02:59]} 4. c4 {[%clk 0:02:57]}  Nf6 {[%clk 0:02:58]} 5. Nc3 {[%clk 0:02:56]}  e5 {[%clk 0:02:58]} 6. d3 {[%clk 0:02:39]}  Be7 {[%clk 0:02:58]} 7. a3 {[%clk 0:02:28]}  O-O {[%clk 0:02:57]} 8. b4 {[%clk 0:02:27]}  a6 {[%clk 0:02:57]} 9. Ba4 {[%clk 0:02:26]}  b5 {[%clk 0:02:52]} 10. Bb3 {[%clk 0:02:21]}  Bb7 {[%clk 0:02:46]} 11. Bg5 {[%clk 0:02:15]}  bxc4 {[%clk 0:02:44]} 12. Bxc4 {[%clk 0:02:14]}  cxb4 {[%clk 0:02:41]} 13. axb4 {[%clk 0:02:14]}  Nb6 {[%clk 0:02:41]} 14. Bxf6 {[%clk 0:02:05]}  Bxf6 {[%clk 0:02:39]} 15. Bb3 {[%clk 0:02:06]}  d5 {[%clk 0:02:39]} 16. O-O {[%clk 0:01:48]}  Rc8 {[%clk 0:02:39]} 17. Nxd5 {[%clk 0:01:46]}  Nxd5 {[%clk 0:02:38]} 18. Bxd5 {[%clk 0:01:42]}  Bxd5 {[%clk 0:02:37]} 19. exd5 {[%clk 0:01:42]}  Qxd5 {[%clk 0:02:36]} 20. Rxa6 {[%clk 0:01:38]}  Rfd8 {[%clk 0:02:36]} 21. Ne1 {[%clk 0:00:56]}  e4 {[%clk 0:02:32]} 22. Qg4 {[%clk 0:00:54]}  exd3 {[%clk 0:02:19]} 23. Nxd3 {[%clk 0:00:53]}  h5 {[%clk 0:01:59]} 24. Nf4 {[%clk 0:00:15]}  hxg4 {[%clk 0:01:54]} 25. Nxd5 {[%clk 0:00:14]}  Rxd5 {[%clk 0:01:54]} 26. Rb6 {[%clk 0:00:14]}  Rd2 {[%clk 0:01:50]} 27. Rb1 {[%clk 0:00:12]}  Bd4 {[%clk 0:01:49]} 0-1


[Site "https://www.chess.com"]

[Event "Titled Tuesday Blitz November 01 Early 2022"]
[White "Gubajdullin, Alexei"]
[Black "Stribuk, Artiom"]
[WhiteFideId "4141202"]
[BlackFideId "13515659"]
[WhiteElo "2200"]
[BlackElo "2279"]
[Result "1/2-1/2"]
[Round "04"]
[TimeControl "180+1"]
[Date "2022.11.02"]
[WhiteClock "0:00:20"]
[BlackClock "0:00:05"]

1. d4 {[%clk 0:03:00]}  Nf6 {[%clk 0:02:59]} 2. Nf3 {[%clk 0:03:00]}  g6 {[%clk 0:02:59]} 3. Bf4 {[%clk 0:03:00]}  Bg7 {[%clk 0:02:58]} 4. e3 {[%clk 0:03:00]}  d6 {[%clk 0:02:56]} 5. Be2 {[%clk 0:03:00]}  O-O {[%clk 0:02:53]} 6. O-O {[%clk 0:03:00]}  Nh5 {[%clk 0:02:40]} 7. Bg5 {[%clk 0:02:58]}  h6 {[%clk 0:02:40]} 8. Bh4 {[%clk 0:02:58]}  g5 {[%clk 0:02:41]} 9. Nfd2 {[%clk 0:02:57]}  gxh4 {[%clk 0:02:31]} 10. Bxh5 {[%clk 0:02:56]}  h3 {[%clk 0:02:32]} 11. g3 {[%clk 0:02:56]}  c5 {[%clk 0:02:32]} 12. c3 {[%clk 0:02:56]}  Nc6 {[%clk 0:02:20]} 13. Bg4 {[%clk 0:02:55]}  cxd4 {[%clk 0:02:17]} 14. exd4 {[%clk 0:02:54]}  e5 {[%clk 0:02:12]} 15. d5 {[%clk 0:02:29]}  Ne7 {[%clk 0:02:08]} 16. c4 {[%clk 0:02:29]}  Bxg4 {[%clk 0:01:42]} 17. Qxg4 {[%clk 0:02:27]}  Qc8 {[%clk 0:01:43]} 18. Qh5 {[%clk 0:02:17]}  Qf5 {[%clk 0:01:26]} 19. Qxf5 {[%clk 0:02:13]}  Nxf5 {[%clk 0:01:27]} 20. Ne4 {[%clk 0:02:13]}  Rfd8 {[%clk 0:01:16]} 21. Nbd2 {[%clk 0:02:12]}  Nd4 {[%clk 0:01:13]} 22. f3 {[%clk 0:02:04]}  f5 {[%clk 0:01:13]} 23. Nf2 {[%clk 0:02:04]}  Rac8 {[%clk 0:00:48]} 24. Nxh3 {[%clk 0:02:00]}  b5 {[%clk 0:00:49]} 25. b3 {[%clk 0:01:52]}  e4 {[%clk 0:00:46]} 26. Rae1 {[%clk 0:01:45]}  bxc4 {[%clk 0:00:35]} 27. bxc4 {[%clk 0:01:42]}  Nc2 {[%clk 0:00:34]} 28. Rc1 {[%clk 0:01:40]}  Nd4 {[%clk 0:00:17]} 29. fxe4 {[%clk 0:01:30]}  Ne2+ {[%clk 0:00:16]} 30. Kg2 {[%clk 0:01:30]}  Nxc1 {[%clk 0:00:17]} 31. Rxc1 {[%clk 0:01:30]}  fxe4 {[%clk 0:00:18]} 32. Nxe4 {[%clk 0:01:30]}  Rb8 {[%clk 0:00:18]} 33. Rc2 {[%clk 0:01:29]}  Be5 {[%clk 0:00:19]} 34. Nf4 {[%clk 0:01:28]}  Bxf4 {[%clk 0:00:17]} 35. gxf4 {[%clk 0:01:27]}  Rb4 {[%clk 0:00:16]} 36. Kf3 {[%clk 0:01:26]}  Kf7 {[%clk 0:00:16]} 37. f5 {[%clk 0:01:26]}  Rb1 {[%clk 0:00:15]} 38. Ke3 {[%clk 0:01:05]}  Re1+ {[%clk 0:00:13]} 39. Kd3 {[%clk 0:01:05]}  Rf1 {[%clk 0:00:13]} 40. f6 {[%clk 0:00:57]}  Rd1+ {[%clk 0:00:09]} 41. Ke3 {[%clk 0:00:55]}  Re1+ {[%clk 0:00:09]} 42. Kf3 {[%clk 0:00:54]}  Rf1+ {[%clk 0:00:10]} 43. Ke2 {[%clk 0:00:50]}  Rf5 {[%clk 0:00:07]} 44. Rb2 {[%clk 0:00:48]}  Rd7 {[%clk 0:00:07]} 45. Ke3 {[%clk 0:00:41]}  Rh5 {[%clk 0:00:07]} 46. Rg2 {[%clk 0:00:34]}  Kf8 {[%clk 0:00:06]} 47. Kd4 {[%clk 0:00:28]}  Rh4 {[%clk 0:00:06]} 48. Rb2 {[%clk 0:00:27]}  Kf7 {[%clk 0:00:05]} 49. Rg2 {[%clk 0:00:20]}  Kf8 {[%clk 0:00:05]} 50. Kd3 {[%clk 0:00:20]}  Rh3+ {[%clk 0:00:05]} 51. Kd4 {[%clk 0:00:20]}  Rh4 {[%clk 0:00:05]} 1/2-1/2


[Site "https://www.chess.com"]

[Event "Titled Tuesday Blitz November 01 Early 2022"]
[White "Iliaguev, Nisim"]
[Black "Celestino, Rafael Teixeira"]
[WhiteFideId "2817276"]
[BlackFideId "2108925"]
[WhiteElo "2264"]
[BlackElo "2442"]
[Result "1/2-1/2"]
[Round "04"]
[TimeControl "180+1"]
[Date "2022.11.02"]
[WhiteClock "0:00:09"]
[BlackClock "0:00:02"]

1. d4 {[%clk 0:00:55]}  Nf6 {[%clk 0:02:54]} 2. Nf3 {[%clk 0:00:56]}  e6 {[%clk 0:02:54]} 3. g3 {[%clk 0:00:57]}  c5 {[%clk 0:02:54]} 4. Bg2 {[%clk 0:00:57]}  d5 {[%clk 0:02:53]} 5. O-O {[%clk 0:00:58]}  Nc6 {[%clk 0:02:52]} 6. c4 {[%clk 0:00:59]}  Bd7 {[%clk 0:02:51]} 7. Nc3 {[%clk 0:00:59]}  dxc4 {[%clk 0:02:50]} 8. e4 {[%clk 0:00:59]}  cxd4 {[%clk 0:02:48]} 9. Nxd4 {[%clk 0:01:00]}  e5 {[%clk 0:02:40]} 10. Ndb5 {[%clk 0:00:59]}  Be6 {[%clk 0:02:33]} 11. Qxd8+ {[%clk 0:00:59]}  Rxd8 {[%clk 0:02:31]} 12. Nc7+ {[%clk 0:00:59]}  Kd7 {[%clk 0:02:31]} 13. N7d5 {[%clk 0:00:59]}  Bxd5 {[%clk 0:02:28]} 14. exd5 {[%clk 0:01:00]}  Nd4 {[%clk 0:02:27]} 15. Bg5 {[%clk 0:00:57]}  Bb4 {[%clk 0:02:12]} 16. Ne4 {[%clk 0:00:23]}  Be7 {[%clk 0:01:40]} 17. d6 {[%clk 0:00:23]}  Nxe4 {[%clk 0:01:32]} 18. dxe7 {[%clk 0:00:23]}  Nxg5 {[%clk 0:01:32]} 19. exd8=Q+ {[%clk 0:00:23]}  Rxd8 {[%clk 0:01:33]} 20. Bxb7 {[%clk 0:00:22]}  Rb8 {[%clk 0:01:33]} 21. Bg2 {[%clk 0:00:19]}  Rxb2 {[%clk 0:01:33]} 22. f4 {[%clk 0:00:19]}  exf4 {[%clk 0:01:21]} 23. Rad1 {[%clk 0:00:19]}  Ne6 {[%clk 0:00:30]} 24. Rxf4 {[%clk 0:00:19]}  c3 {[%clk 0:00:22]} 25. Rfxd4+ {[%clk 0:00:19]}  Nxd4 {[%clk 0:00:23]} 26. Rxd4+ {[%clk 0:00:20]}  Ke6 {[%clk 0:00:23]} 27. Rc4 {[%clk 0:00:18]}  c2 {[%clk 0:00:21]} 28. Bf1 {[%clk 0:00:19]}  Kd5 {[%clk 0:00:20]} 29. Rc7 {[%clk 0:00:17]}  Kd4 {[%clk 0:00:20]} 30. a4 {[%clk 0:00:14]}  a5 {[%clk 0:00:19]} 31. Rc8 {[%clk 0:00:13]}  Ke3 {[%clk 0:00:18]} 32. h4 {[%clk 0:00:09]}  Kd2 {[%clk 0:00:19]} 33. Rd8+ {[%clk 0:00:09]}  Ke1 {[%clk 0:00:18]} 34. Rc8 {[%clk 0:00:09]}  Kd2 {[%clk 0:00:18]} 35. Rd8+ {[%clk 0:00:09]}  Kc3 {[%clk 0:00:16]} 36. Rc8+ {[%clk 0:00:10]}  Kb3 {[%clk 0:00:17]} 37. Rc4 {[%clk 0:00:05]}  Rb1 {[%clk 0:00:13]} 38. Kf2 {[%clk 0:00:05]}  c1=Q {[%clk 0:00:11]} 39. Rxc1 {[%clk 0:00:05]}  Rxc1 {[%clk 0:00:12]} 40. Bd3 {[%clk 0:00:06]}  Rc3 {[%clk 0:00:11]} 41. Bxh7 {[%clk 0:00:06]}  g6 {[%clk 0:00:11]} 42. Bg8 {[%clk 0:00:07]}  Rc7 {[%clk 0:00:08]} 43. g4 {[%clk 0:00:07]}  Kxa4 {[%clk 0:00:09]} 44. h5 {[%clk 0:00:08]}  gxh5 {[%clk 0:00:08]} 45. gxh5 {[%clk 0:00:09]}  Rc5 {[%clk 0:00:04]} 46. h6 {[%clk 0:00:08]}  Rh5 {[%clk 0:00:04]} 47. h7 {[%clk 0:00:07]}  f5 {[%clk 0:00:04]} 48. Kf3 {[%clk 0:00:05]}  Kb4 {[%clk 0:00:03]} 49. Kf4 {[%clk 0:00:05]}  a4 {[%clk 0:00:03]} 50. Ke5 {[%clk 0:00:06]}  a3 {[%clk 0:00:03]} 51. Kf6 {[%clk 0:00:07]}  Kc3 {[%clk 0:00:02]} 52. Kg6 {[%clk 0:00:07]}  Rh2 {[%clk 0:00:02]} 53. Kxf5 {[%clk 0:00:07]}  Kb2 {[%clk 0:00:03]} 54. Kg6 {[%clk 0:00:07]}  Rg2+ {[%clk 0:00:02]} 55. Kf6 {[%clk 0:00:07]}  Rf2+ {[%clk 0:00:01]} 56. Kg7 {[%clk 0:00:08]}  Rh2 {[%clk 0:00:02]} 57. h8=Q {[%clk 0:00:08]}  Rxh8 {[%clk 0:00:02]} 58. Kxh8 {[%clk 0:00:08]}  a2 {[%clk 0:00:02]} 59. Bxa2 {[%clk 0:00:09]} 1/2-1/2


[Site "https://www.chess.com"]

[Event "Titled Tuesday Blitz November 01 Early 2022"]
[White "Ismayil, Malak"]
[Black "Kuznetsova, Olga"]
[WhiteFideId "13412604"]
[BlackFideId "4191323"]
[WhiteElo "1879"]
[BlackElo "2134"]
[Result "0-1"]
[Round "04"]
[TimeControl "180+1"]
[Date "2022.11.02"]
[WhiteClock "0:00:04"]
[BlackClock "0:00:17"]

1. e4 {[%clk 0:03:00]}  e6 {[%clk 0:02:50]} 2. d4 {[%clk 0:03:00]}  d5 {[%clk 0:02:50]} 3. Nd2 {[%clk 0:03:00]}  c5 {[%clk 0:02:50]} 4. exd5 {[%clk 0:03:00]}  exd5 {[%clk 0:02:50]} 5. Ngf3 {[%clk 0:02:59]}  Nf6 {[%clk 0:02:50]} 6. Bb5+ {[%clk 0:02:57]}  Bd7 {[%clk 0:02:47]} 7. Bxd7+ {[%clk 0:02:57]}  Qxd7 {[%clk 0:02:46]} 8. O-O {[%clk 0:02:58]}  Be7 {[%clk 0:02:46]} 9. Re1 {[%clk 0:02:57]}  O-O {[%clk 0:02:46]} 10. dxc5 {[%clk 0:02:55]}  Bxc5 {[%clk 0:02:45]} 11. Nb3 {[%clk 0:02:56]}  Bb6 {[%clk 0:02:45]} 12. h3 {[%clk 0:02:55]}  Ne4 {[%clk 0:02:42]} 13. Be3 {[%clk 0:02:55]}  Bxe3 {[%clk 0:02:38]} 14. Rxe3 {[%clk 0:02:56]}  h6 {[%clk 0:02:31]} 15. c3 {[%clk 0:02:55]}  Re8 {[%clk 0:02:29]} 16. Qd3 {[%clk 0:02:53]}  Nc6 {[%clk 0:02:28]} 17. Rd1 {[%clk 0:02:51]}  Nf6 {[%clk 0:02:28]} 18. Rde1 {[%clk 0:02:36]}  Rxe3 {[%clk 0:02:27]} 19. Rxe3 {[%clk 0:02:37]}  Re8 {[%clk 0:02:27]} 20. Nbd4 {[%clk 0:02:27]}  Rxe3 {[%clk 0:02:24]} 21. Qxe3 {[%clk 0:02:28]}  a6 {[%clk 0:02:15]} 22. Ne5 {[%clk 0:02:15]}  Nxe5 {[%clk 0:02:02]} 23. Qxe5 {[%clk 0:02:16]}  Qe8 {[%clk 0:01:32]} 24. Qxe8+ {[%clk 0:01:57]}  Nxe8 {[%clk 0:01:33]} 25. Kf1 {[%clk 0:01:57]}  Kf8 {[%clk 0:01:31]} 26. Ke2 {[%clk 0:01:57]}  Ke7 {[%clk 0:01:32]} 27. Kd3 {[%clk 0:01:57]}  Kd6 {[%clk 0:01:32]} 28. f3 {[%clk 0:01:54]}  Ke5 {[%clk 0:01:31]} 29. Ke3 {[%clk 0:01:53]}  Nd6 {[%clk 0:01:28]} 30. b3 {[%clk 0:01:52]}  g6 {[%clk 0:01:23]} 31. g4 {[%clk 0:01:39]}  g5 {[%clk 0:01:20]} 32. Ne2 {[%clk 0:01:35]}  f5 {[%clk 0:01:19]} 33. Nc1 {[%clk 0:01:31]}  f4+ {[%clk 0:01:17]} 34. Kd2 {[%clk 0:01:28]}  Nb5 {[%clk 0:01:00]} 35. Nd3+ {[%clk 0:01:25]}  Kd6 {[%clk 0:01:00]} 36. a4 {[%clk 0:01:18]}  Nc7 {[%clk 0:01:00]} 37. Nb4 {[%clk 0:01:14]}  Ne6 {[%clk 0:01:00]} 38. Nc2 {[%clk 0:01:13]}  Ke5 {[%clk 0:00:59]} 39. b4 {[%clk 0:01:09]}  b6 {[%clk 0:00:54]} 40. Ne1 {[%clk 0:01:01]}  a5 {[%clk 0:00:47]} 41. Nd3+ {[%clk 0:01:00]}  Kd6 {[%clk 0:00:47]} 42. b5 {[%clk 0:00:44]}  Nd8 {[%clk 0:00:19]} 43. Kc2 {[%clk 0:00:12]}  Nb7 {[%clk 0:00:18]} 44. Kd2 {[%clk 0:00:10]}  Ke6 {[%clk 0:00:18]} 45. Kc2 {[%clk 0:00:07]}  Nd6 {[%clk 0:00:19]} 46. Nb2 {[%clk 0:00:05]}  Ke5 {[%clk 0:00:18]} 47. Kd3 {[%clk 0:00:05]}  Nb7 {[%clk 0:00:17]} 48. c4 {[%clk 0:00:04]}  Nc5+ {[%clk 0:00:17]} 49. Kc3 {[%clk 0:00:04]}  d4+ {[%clk 0:00:18]} 50. Kd2 {[%clk 0:00:05]}  Kd6 {[%clk 0:00:17]} 51. Nd3 {[%clk 0:00:04]}  Nxa4 {[%clk 0:00:17]} 52. Ne1 {[%clk 0:00:03]}  Nc5 {[%clk 0:00:17]} 53. Nc2 {[%clk 0:00:02]}  d3 {[%clk 0:00:16]} 54. Nd4 {[%clk 0:00:03]}  a4 {[%clk 0:00:15]} 55. Nf5+ {[%clk 0:00:03]}  Ke5 {[%clk 0:00:16]} 56. Nxh6 {[%clk 0:00:04]}  a3 {[%clk 0:00:16]} 57. Nf7+ {[%clk 0:00:04]}  Kf6 {[%clk 0:00:17]} 58. Nd6 {[%clk 0:00:04]}  a2 {[%clk 0:00:17]} 0-1


[Site "https://www.chess.com"]

[Event "Titled Tuesday Blitz November 01 Early 2022"]
[White "Jean Louis, Marckens"]
[Black "Kakabayev, Mergen"]
[WhiteFideId "11900270"]
[BlackFideId "14002990"]
[WhiteElo "2030"]
[BlackElo "2302"]
[Result "1-0"]
[Round "04"]
[TimeControl "180+1"]
[Date "2022.11.02"]
[WhiteClock "0:00:04"]
[BlackClock "0:00:08"]

1. Nf3 {[%clk 0:03:00]}  d5 {[%clk 0:02:51]} 2. d4 {[%clk 0:02:39]}  Nf6 {[%clk 0:02:51]} 3. c4 {[%clk 0:02:38]}  c6 {[%clk 0:02:51]} 4. Nc3 {[%clk 0:02:37]}  e6 {[%clk 0:02:51]} 5. cxd5 {[%clk 0:02:36]}  cxd5 {[%clk 0:02:51]} 6. a3 {[%clk 0:02:35]}  Nc6 {[%clk 0:02:51]} 7. Bg5 {[%clk 0:02:34]}  Be7 {[%clk 0:02:51]} 8. e3 {[%clk 0:02:34]}  O-O {[%clk 0:02:51]} 9. Bd3 {[%clk 0:02:33]}  Bd7 {[%clk 0:02:52]} 10. O-O {[%clk 0:02:12]}  Rc8 {[%clk 0:02:51]} 11. Qe2 {[%clk 0:02:10]}  a6 {[%clk 0:02:46]} 12. Rfd1 {[%clk 0:02:09]}  h6 {[%clk 0:02:44]} 13. Bh4 {[%clk 0:02:08]}  b5 {[%clk 0:02:44]} 14. Rac1 {[%clk 0:02:08]}  Na5 {[%clk 0:02:43]} 15. e4 {[%clk 0:02:06]}  dxe4 {[%clk 0:02:42]} 16. Nxe4 {[%clk 0:02:05]}  Nxe4 {[%clk 0:02:40]} 17. Qxe4 {[%clk 0:02:04]}  f5 {[%clk 0:02:40]} 18. Bxe7 {[%clk 0:02:05]}  Qxe7 {[%clk 0:02:26]} 19. Qe2 {[%clk 0:02:02]}  Bc6 {[%clk 0:02:21]} 20. Bb1 {[%clk 0:02:00]}  Bd5 {[%clk 0:02:20]} 21. h3 {[%clk 0:01:50]}  Qd6 {[%clk 0:02:11]} 22. Ne5 {[%clk 0:01:35]}  Rxc1 {[%clk 0:01:44]} 23. Rxc1 {[%clk 0:01:34]}  Nb3 {[%clk 0:01:44]} 24. Rd1 {[%clk 0:01:30]}  Rc8 {[%clk 0:01:38]} 25. Ba2 {[%clk 0:01:25]}  Nc1 {[%clk 0:01:33]} 26. Qh5 {[%clk 0:01:18]}  Nxa2 {[%clk 0:01:27]} 27. Qf7+ {[%clk 0:01:17]}  Kh8 {[%clk 0:01:25]} 28. Rd3 {[%clk 0:01:12]}  f4 {[%clk 0:00:51]} 29. Qxf4 {[%clk 0:01:09]}  Qc7 {[%clk 0:00:46]} 30. Kh2 {[%clk 0:01:02]}  Kg8 {[%clk 0:00:44]} 31. Rg3 {[%clk 0:00:55]}  Kh7 {[%clk 0:00:42]} 32. Qg4 {[%clk 0:00:52]}  Rf8 {[%clk 0:00:35]} 33. Qg6+ {[%clk 0:00:49]}  Kh8 {[%clk 0:00:35]} 34. Qh5 {[%clk 0:00:49]}  Be4 {[%clk 0:00:23]} 35. Qg4 {[%clk 0:00:25]}  Bf5 {[%clk 0:00:20]} 36. Qf4 {[%clk 0:00:25]}  Qe7 {[%clk 0:00:17]} 37. Qxf5 {[%clk 0:00:22]}  Rxf5 {[%clk 0:00:14]} 38. Ng6+ {[%clk 0:00:22]}  Kh7 {[%clk 0:00:15]} 39. Nxe7 {[%clk 0:00:23]}  Rxf2 {[%clk 0:00:14]} 40. b4 {[%clk 0:00:20]}  Nc1 {[%clk 0:00:13]} 41. Nc6 {[%clk 0:00:19]}  Ne2 {[%clk 0:00:13]} 42. Re3 {[%clk 0:00:19]}  Nf4 {[%clk 0:00:10]} 43. Rg3 {[%clk 0:00:18]}  g5 {[%clk 0:00:09]} 44. Nb8 {[%clk 0:00:15]}  Kg6 {[%clk 0:00:09]} 45. Nxa6 {[%clk 0:00:12]}  Kf5 {[%clk 0:00:09]} 46. Nc7 {[%clk 0:00:12]}  h5 {[%clk 0:00:10]} 47. Kg1 {[%clk 0:00:10]}  Ra2 {[%clk 0:00:08]} 48. Rf3 {[%clk 0:00:04]} 1-0


[Site "https://www.chess.com"]